[Event "1000 GM Labor Day Super Swiss 2024"]
[Site "San Jose"]
[Date "2024.09.04"]
[Round "9.7"]
[White "Koustav Chatterjee"]
[Black "Montes Orozco, Miguel Angel"]
[Result "1-0"]
[Annotator "TA"]
[ECO "A14"]
[WhiteElo "2524"]
[BlackElo "2155"]
[PlyCount "55"]
[EventDate "2024.08.30"]
[EventType "swiss"]
[EventCountry "USA"]
[SourceTitle "playchess.com"]
[Source "ChessBase"]
[SourceQuality "1"]
[TimeControl "5400+30"]

{[%evp 9,55,23,18,23,7,2,27,8,41,10,22,2,43,43,68,79,122,31,47,54,145,128,127,85,285,277,293,304,452,373,451,459,464,438,472,457,483,460,471,450,480,467,461,423,525,512,578,529]} 1. Nf3 {[%emt 0:03:02]} d5 {[%emt 0:02:17]} 2. g3 {[%emt 0:00:30]} Nf6 {[%emt 0:00:22]} 3. Bg2 {[%emt 0:00:05]} e6 {[%emt 0:03:09]} 4. O-O {[%emt 0:00:07]} Be7 {[%emt 0:00:03]} 5. c4 {[%emt 0:00:11]} d4 {[%emt 0:00:34]} 6. e3 {[%emt 0:00:16]} c5 {[%emt 0:00:05]} 7. exd4 {[%emt 0:00:03]} cxd4 {[%emt 0:00:04]} 8. d3 {[%emt 0:00:03][%cal Ob2b4] White has an edge.} O-O {[%emt 0:00:10]} 9. Re1 {[%emt 0:00:27]} Nc6 {[%emt 0:02:10]} 10. Na3 {[%emt 0:00:26]} Nd7 {[%emt 0:06:12]} 11. Nc2 {[%emt 0:00:45]} e5 {[%emt 0:01:17] [#]} 12. b4 $1 {[%emt 0:02:14]} f6 {[%emt 0:02:50][%cal Bf7f6,Bf6g5][%mdl 32]} (12... Re8 13. a3) 13. Rb1 {[%emt 0:02:03]} (13. b5 $16) 13... a5 {[%emt 0:03:15]} 14. a3 {[%emt 0:00:41]} Re8 {[%emt 0:01:00]} ({Black should try} 14... axb4 $14 15. axb4 Nb6) 15. Nh4 $16 {[%emt 0:05:32]} Nf8 {[%emt 0:03:06]} 16. f4 {[%emt 0:01:37] Black must now prevent b5. White is more active.} g5 $2 {[%emt 0:06:50] This costs Black the game.} (16... axb4 $16 {keeps fighting.} 17. axb4 (17. Nxb4 Bd7 $16) 17... Bd6) 17. fxg5 $18 {[%emt 0:02:56]} fxg5 {[%emt 0:00:24]} 18. b5 {[%emt 0:01:59]} Nb8 {[%emt 0:01:47] [#]} (18... gxh4 $142 19. bxc6 bxc6 20. Bxc6 Be6 21. Bxe8 (21. Rxe5 Qd6 $18) 21... Qxe8 22. Rxe5 hxg3 23. hxg3 (23. Nxd4 gxh2+ 24. Kh1 Bf6 $18) 23... Qf7) 19. Rxe5 $1 {[%emt 0:06:31]} Nbd7 {[%emt 0:02:32] [#]} (19... gxh4 20. Bd5+) 20. Rxe7 {[%emt 0:04:05][%mdl 512] White is clearly winning.} Qxe7 {[%emt 0:00:54]} 21. Nf5 {[%emt 0:00:06]} Qf6 {[%emt 0:00:25]} 22. Qh5 {[%emt 0:02:34]} (22. Nfxd4 Qg6 23. Bd5+ Kg7 $18) (22. Ncxd4 Nb6 $18) 22... Qg6 {[%emt 0:00:27]} 23. Bd5+ {[%emt 0:00:32]} (23. Qxg5 Ne6 24. Ne7+ Kf7 $18) 23... Kh8 {[%emt 0:02:31]} 24. Qxg6 {[%emt 0:00:27]} (24. Qxg5 Re5 25. Qxg6 (25. Ncxd4 Nf6 $18) 25... hxg6) 24... Nxg6 {[%emt 0:01:56]} 25. Bxg5 {[%emt 0:06:03]} ({Much less strong is} 25. Ncxd4 h6 26. Nd6 (26. Nxh6 Nf6 $18) 26... Re7 27. Nxc8 (27. Nxb7 Nb6 $18) 27... Rxc8 28. Bxb7 Rf8) 25... Rf8 {[%emt 0:00:08]} 26. Ncxd4 {[%emt 0:00:06]} ({Resist} 26. Nfxd4 Nc5 27. Bh6 Rf6 $18) 26... Nf6 {[%emt 0:05:04]} 27. Bg2 {[%emt 0:00:43]} Ne5 {[%emt 0:00:20]} 28. Rf1 {[%emt 0:01:09] Weighted Error Value: White=0.13 (very precise) /Black=0.50.  Loses game:     	---       	Black=1      Mistake:       	White=1     	Black=2      Inaccurate:     	White=2     	Black=2      OK:         	White=10    	Black=4      Best:        	White=1     	Black=1} 1-0

[Event "1000 GM Labor Day Super Swiss 2024"]
[Site "San Jose"]
[Date "2024.09.04"]
[Round "9.8"]
[White "Schitco, Ivan"]
[Black "Gongora Montes, Benjamin"]
[Result "1-0"]
[Annotator "TA"]
[ECO "C85"]
[WhiteElo "2518"]
[BlackElo "2111"]
[PlyCount "117"]
[EventDate "2024.08.30"]
[EventType "swiss"]
[EventCountry "USA"]
[SourceTitle "playchess.com"]
[Source "ChessBase"]
[SourceQuality "1"]
[TimeControl "5400+30"]

{[%evp 17,117,0,0,0,0,0,-3,-13,-3,0,-3,0,19,16,40,0,0,0,0,0,89,109,123,110,157,167,168,104,100,97,222,223,368,233,245,247,235,232,226,178,172,196,192,187,178,153,229,222,225,226,206,185,251,229,246,243,245,168,168,168,168,168,168,163,168,156,210,185,213,185,185,185,185,222,245,231,210,164,164,172,565,603,522,222,596,590,675,702,666,664,556,530,838,802,29966,29960,29966,29968,29970,29971,29978,29979]} 1. e4 {[%emt 0:00:11]} e5 {[%emt 0:00:34]} 2. Nf3 {[%emt 0:02:48]} Nc6 {[%emt 0:00:09]} 3. Bb5 {[%emt 0:01:15]} a6 {[%emt 0:00:08]} 4. Ba4 {[%emt 0:00:04]} Nf6 {[%emt 0:00:07][%cal Bg8f6,Bf6d7,Bd7c5][%mdl 32]} 5. O-O {[%emt 0:01:01]} Be7 {[%emt 0:00:33]} 6. Bxc6 {[%emt 0:02:09]} dxc6 {[%emt 0:00:09]} 7. d3 {[%emt 0:00:05]} Nd7 {[%emt 0:00:09]} 8. Nbd2 {[%emt 0:00:56][%cal Bb1d2,Bd2c4,Bc4e3,Be3f5][%mdl 32]} f6 {[%emt 0:00:12]} 9. Nc4 {[%emt 0:01:22]} Nc5 {[%emt 0:06:01]} 10. Ne3 {[%emt 0:02:52]} Ne6 {[%emt 0:03:04]} 11. Nf5 {[%emt 0:01:10]} Bf8 {[%emt 0:01:07]} 12. Be3 {[%emt 0:03:58] The position is equal.} g6 {[%emt 0:01:13]} 13. Ng3 {[%emt 0:01:13]} c5 {[%emt 0:02:34]} 14. c3 {[%emt 0:04:48]} Bd7 {[%emt 0:12:12]} 15. Qb3 {[%emt 0:04:27]} Bd6 {[%emt 0:09:35]} 16. Rfd1 {[%emt 0:07:14][%cal Od3d4]} O-O {[%emt 0:01:52]} 17. d4 {[%emt 0:07:52]} cxd4 {[%emt 0:00:19]} 18. cxd4 {[%emt 0:00:06]} Kh8 {[%emt 0:04:02]} (18... Qe8 $11 {keeps the balance.}) 19. dxe5 {[%emt 0:03:18]} fxe5 {[%emt 0:00:13]} 20. Qxb7 {[%emt 0:01:40] White is much more active.} Rb8 {[%emt 0:00:24]} (20... Nf4 $142) 21. Qxa6 $16 {[%emt 0:02:57]} Rxb2 {[%emt 0:00:23]} 22. Rxd6 {[%emt 0:06:40]} (22. a4 $1 $18) 22... cxd6 {[%emt 0:00:09]} 23. Qxd6 {[%emt 0:00:07]} Rb5 {[%emt 0:05:42] Black cannot hold the game after this.} (23... Kg8 $16 {might work better.} 24. Rc1 (24. Qxe5 Rb5 $16) (24. Nxe5 Bc8 $16) 24... Bc8 25. Qxe5 Rxa2) 24. a4 $18 {[%emt 0:02:02][%cal Ba2a4,Ba4a5,Ba5a6,Ba6a7][%mdl 32]} (24. Nxe5 Bc8 25. Nc4 Qxd6 26. Nxd6 Rb2 $11) 24... Rb3 {[%emt 0:03:02]} (24... Rb7 $142 25. Qxe5+ Kg8) 25. Qxe5+ {[%emt 0:01:56]} (25. Nxe5 Qf6 26. h4 (26. Nxd7 $2 Qxa1+ 27. Nf1 Rxe3 $19) 26... Be8 $18) 25... Qf6 {[%emt 0:00:10]} 26. Qxf6+ {[%emt 0:00:58]} Rxf6 {[%emt 0:00:10]} 27. a5 {[%emt 0:00:50]} Rf8 {[%emt 0:01:07]} 28. Nd4 {[%emt 0:02:46]} Nxd4 {[%emt 0:00:39]} 29. Bxd4+ {[%emt 0:00:04]} Kg8 {[%emt 0:00:10]} 30. a6 {[%emt 0:01:42]} Bc6 {[%emt 0:00:36]} 31. a7 {[%emt 0:06:38]} Kf7 {[%emt 0:00:56]} (31... Rd8 $16 {is a better defense.}) 32. Rc1 {[%emt 0:03:42]} Ba8 {[%emt 0:00:14]} 33. Rc7+ {[%emt 0:01:44]} Ke6 {[%emt 0:00:15]} 34. h4 {[%emt 0:03:03][%cal Od4c5] Threatens to win with Bc5!} ({Inferior is} 34. Rxh7 Rb1+ 35. Nf1 Bxe4 $11) 34... Rb1+ {[%emt 0:00:16]} (34... Rb7 $142 35. Rc2 Rb1+ 36. Kh2 Kd7) 35. Kh2 {[%emt 0:00:48]} Rb7 {[%emt 0:00:08]} 36. Rc3 {[%emt 0:02:55]} Kd7 {[%emt 0:04:22]} 37. Rf3 {[%emt 0:01:37]} Rxf3 {[%emt 0:00:59]} 38. gxf3 {[%emt 0:00:04][%mdl 4096] Endgame. KRB-KBN} Rb3 {[%emt 0:00:51]} 39. Be3 {[%emt 0:00:09]} Ra3 {[%emt 0:00:08]} 40. Ne2 {[%emt 0:00:22]} Ra1 {[%emt 0:03:57]} 41. Nf4 {[%emt 0:00:18]} Ra3 {[%emt 0:00:37]} (41... Bb7 $16 42. h5 Ra6) 42. Nh3 {[%emt 0:00:25]} Ra1 {[%emt 0:00:37]} 43. Ng5 {[%emt 0:00:19]} h5 {[%emt 0:00:09]} 44. Nf7 {[%emt 0:01:59]} Ra5 {[%emt 0:01:34] Dodges Ne5+} 45. Kg3 {[%emt 0:02:18]} Ke7 {[%emt 0:00:22]} 46. Nh8 {[%emt 0:03:03]} Ra6 {[%emt 0:01:04]} 47. Bc5+ {[%emt 0:00:06]} Ke8 {[%emt 0:00:41]} 48. Kf4 {[%emt 0:00:40]} Rc6 $2 {[%emt 0:03:09]} (48... Rf6+ {is tougher.} 49. Ke5 (49. Kg5 Rxf3 50. Nxg6 Bxe4 $14) 49... Ra6) 49. Bd4 {[%emt 0:01:34]} Rd6 {[%emt 0:01:23] [#]} 50. Be3 {[%emt 0:01:10] aiming for Kg5.} Rf6+ {[%emt 0:01:09]} 51. Kg5 {[%emt 0:01:25]} Rxf3 {[%emt 0:00:10]} 52. Nxg6 {[%emt 0:00:54]} (52. Kxg6 Rf8 53. Bd4 Bxe4+ 54. Kxh5 Kd7 $11) 52... Bxe4 {[%emt 0:00:31] [#]} 53. Nf4 $1 {[%emt 0:00:30]} ({Not} 53. Kxh5 Rf6 $16) 53... Kf7 {[%emt 0:03:12]} 54. Kxh5 {[%emt 0:00:35]} Kf6 {[%emt 0:00:18]} 55. Kg4 {[%emt 0:00:22]} Bc6 {[%emt 0:00:07]} 56. h5 {[%emt 0:00:22][%cal Bh4h5,Bh5h6,Bh6h7][%mdl 32] White mates.} Bb7 {[%emt 0:00:15]} 57. h6 {[%emt 0:02:01]} Kf7 {[%emt 0:00:11]} 58. h7 {[%emt 0:00:56]} Kg7 {[%emt 0:00:23]} 59. Ne6+ {[%emt 0:00:07] Weighted Error Value: White=0.14 (very precise) /Black=0.41.  Mistake:       	White=1     	Black=8      Inaccurate:     	White=3     	Black=1      OK:         	White=16    	Black=12     Best:        	White=7     	Black=4} 1-0

[Event "1000 GM Labor Day Super Swiss 2024"]
[Site "San Jose"]
[Date "2024.09.04"]
[Round "9.9"]
[White "Piasetski, Leon"]
[Black "Zuluaga Mancilla, Cesar"]
[Result "1/2-1/2"]
[Annotator "TA"]
[ECO "D02"]
[WhiteElo "2167"]
[BlackElo "2166"]
[PlyCount "113"]
[EventDate "2024.08.30"]
[EventType "swiss"]
[EventCountry "USA"]
[SourceTitle "playchess.com"]
[Source "ChessBase"]
[SourceQuality "1"]
[TimeControl "5400+30"]

{[%evp 9,113,0,10,0,8,0,12,0,22,0,43,0,42,0,0,0,13,11,10,0,23,11,27,0,0,0,9,0,-2,-4,3,0,35,29,34,35,43,39,39,29,24,25,16,14,24,17,26,15,42,21,20,17,22,18,31,29,110,110,98,113,107,87,93,56,49,55,41,43,50,29,35,35,25,16,27,27,37,14,22,22,51,18,62,63,62,64,74,39,39,29,25,0,0,0,0,0,0,0,0,0,0,0,0,0,0,0]} 1. Nf3 {[%emt 0:03:37]} d5 {[%emt 0:02:35]} 2. d4 {[%emt 0:02:07]} c6 {[%emt 0:00:44]} 3. c3 {[%emt 0:02:41]} Bf5 {[%emt 0:02:30]} 4. Bf4 {[%emt 0:01:17]} e6 {[%emt 0:00:55]} 5. e3 {[%emt 0:00:31]} Qb6 {[%emt 0:00:08]} 6. Qb3 {[%emt 0:00:16]} Nf6 {[%emt 0:00:55]} 7. h3 {[%emt 0:03:13]} Nbd7 {[%emt 0:00:47]} 8. Nbd2 {[%emt 0:00:19]} Be7 {[%emt 0:00:54]} 9. Be2 {[%emt 0:01:11]} O-O {[%emt 1:25:32]} 10. O-O {[%emt 1:20:18]} c5 {[%emt 0:00:00]} 11. c4 {[%emt 0:00:00]} Rfc8 {[%emt 0:00:00]} 12. Rfc1 {[%emt 0:00:00]} Bg6 {[%emt 0:00:00]} 13. dxc5 {[%emt 0:00:00]} Bxc5 {[%emt 0:00:00]} 14. Qxb6 {[%emt 0:00:00]} Bxb6 {[%emt 0:00:00][%cal Bc5b6,Bb6d8,Bd8e7][%mdl 32]} 15. a3 {[%emt 0:00:00]} dxc4 {[%emt 0:00:00]} 16. Bxc4 {[%emt 0:00:00]} h6 {[%emt 0:00:00]} 17. b4 {[%emt 0:00:00]} Bd8 {[%emt 0:00:00]} 18. Ne5 {[%emt 0:00:00]} Nxe5 {[%emt 0:00:00]} 19. Bxe5 {[%emt 0:00:00]} Nd7 {[%emt 0:00:00][%cal Bf6d7,Bd7b6,Bb6d5][%mdl 32]} 20. Bd4 {[%emt 0:00:00]} Be7 {[%emt 0:00:00]} 21. Bb5 {[%emt 0:00:00]} Nb6 {[%emt 0:00:00]} 22. Nb3 {[%emt 0:00:00]} Nd5 {[%emt 0:00:00]} 23. Na5 {[%emt 0:00:00]} b6 {[%emt 0:00:00]} 24. Nc6 {[%emt 0:00:00]} Bd6 {[%emt 0:00:00]} 25. Ne5 {[%emt 0:00:00]} Bxe5 {[%emt 0:00:00]} 26. Bxe5 {[%emt 0:00:00] Black must now prevent Bc6.} Rxc1+ {[%emt 0:00:00]} 27. Rxc1 {[%emt 0:00:00]} f6 {[%emt 0:00:00]} 28. Bb2 {[%emt 0:00:00]} Be8 {[%emt 0:00:00]} 29. Ba6 {[%emt 0:00:00]} Rd8 {[%emt 0:00:00]} 30. Kf1 {[%emt 0:00:00]} Kf8 {[%emt 0:00:00]} 31. Ke2 {[%emt 0:00:00]} Bg6 {[%emt 0:00:00]} 32. f3 {[%emt 0:00:00]} Ke7 {[%emt 0:00:00] [#]} (32... e5 $11) 33. g3 $1 $16 {[%emt 0:00:00] And now e4 would win.} Kd6 {[%emt 0:00:00]} 34. e4 {[%emt 0:00:00][%cal Be3e4,Be4e5][%mdl 32]} Nc7 {[%emt 0:00:00] [#]} 35. e5+ $1 {[%emt 0:02:11][%mdl 512]} Kd7 {[%emt 0:00:00]} (35... fxe5 $2 {too greedy.} 36. Bxe5+ Kxe5 37. Rxc7 $18) 36. Rd1+ {[%emt 0:00:57]} Ke8 {[%emt 0:00:00]} 37. Rxd8+ {[%emt 0:00:29]} Kxd8 $14 {[%emt 0:00:00][%mdl 4096] Endgame. KBB-KBN} 38. Bc4 {[%emt 0:00:26]} f5 {[%emt 0:00:00]} 39. g4 {[%emt 0:00:57]} fxg4 {[%emt 0:00:19]} 40. hxg4 {[%emt 0:00:07]} Be8 {[%emt 0:00:14]} 41. Ke3 {[%emt 0:00:41]} Bb5 {[%emt 0:01:04]} 42. Bb3 {[%emt 0:00:28]} g5 {[%emt 0:00:21]} 43. f4 {[%emt 0:00:32]} gxf4+ {[%emt 0:00:16]} 44. Kxf4 {[%emt 0:00:07]} Ke7 {[%emt 0:00:13]} 45. a4 {[%emt 0:00:38]} Bc6 {[%emt 0:00:08]} 46. b5 {[%emt 0:00:08]} Bd5 {[%emt 0:02:33]} 47. Bc2 {[%emt 0:00:50]} Bc4 {[%emt 0:00:27]} 48. Ba3+ {[%emt 0:00:11]} Kf7 {[%emt 0:00:25]} 49. Bd6 {[%emt 0:00:13]} Nd5+ {[%emt 0:00:04]} 50. Kg3 {[%emt 0:01:05]} Ne3 {[%emt 0:02:07] The position is equal.} 51. Be4 {[%emt 0:00:33]} Bb3 {[%emt 0:04:55]} 52. Bb8 {[%emt 0:00:28] Hoping for a5. This pair of bishops is nice.} Bxa4 {[%emt 0:00:04]} 53. Bxa7 {[%emt 0:00:08]} Nc4 {[%emt 0:01:33]} 54. Kf4 {[%emt 0:00:46]} Bxb5 {[%emt 0:01:50]} 55. Bd3 {[%emt 0:00:10]} Na3 {[%emt 0:00:20]} 56. Be4 {[%emt 0:00:14]} Nc4 {[%emt 0:01:25]} 57. Bd3 {[%emt 0:00:03] Weighted Error Value: White=0.10 (very precise) /Black=0.11 (very precise) .  Mistake:       	---       	Black=1      Inaccurate:     	White=6     	Black=6      OK:         	White=17    	Black=19     Best:        	---       	Black=2      Strong:       	White=1     	---} 1/2-1/2

[Event "1000 GM Labor Day Super Swiss 2024"]
[Site "San Jose"]
[Date "2024.09.04"]
[Round "9.10"]
[White "Atwell, Rose"]
[Black "Garcia Guerrero, Isaac Antonio"]
[Result "1/2-1/2"]
[Annotator "TA"]
[ECO "B40"]
[WhiteElo "2208"]
[BlackElo "2291"]
[PlyCount "102"]
[EventDate "2024.08.30"]
[EventType "swiss"]
[EventCountry "USA"]
[SourceTitle "playchess.com"]
[Source "ChessBase"]
[SourceQuality "1"]
[TimeControl "5400+30"]

{[%evp 21,102,3,13,10,10,0,0,-33,0,0,9,-1,8,-31,0,-24,-18,0,0,0,13,18,20,14,21,28,26,16,41,3,26,28,14,20,24,-3,-10,-4,0,-87,-92,-115,0,0,0,-33,-25,-17,-31,-58,-88,-143,-3,-73,-53,-79,-39,-170,-163,-267,0,0,0,0,0,0,0,0,0,0,0,0,0,0,0,0,0,0,0,0,0,0,0]} 1. e4 {[%emt 0:00:01]} c5 {[%emt 0:00:09]} 2. Nf3 {[%emt 0:00:06]} e6 {[%emt 0:00:05]} 3. b3 {[%emt 0:00:06]} a6 {[%emt 0:00:08]} 4. Bb2 {[%emt 0:00:06]} Nc6 {[%emt 0:00:05]} 5. c4 {[%emt 0:00:06]} Nf6 {[%emt 0:00:28]} 6. e5 {[%emt 0:05:48] B40: Sicilian: 2...e6, Unusual lines.} Ng4 {[%emt 0:00:18]} 7. h3 {[%emt 0:00:44]} Nh6 {[%emt 0:00:06]} 8. Nc3 {[%emt 0:06:27]} Nf5 {[%emt 0:02:54]} 9. Ne4 {[%emt 0:03:48]} b6 $146 {[%emt 0:02:57]} ({Predecessor:} 9... Nfd4 10. Nxd4 Nxd4 11. Bxd4 cxd4 12. c5 b6 13. cxb6 Bb7 14. Bd3 Qxb6 15. O-O Be7 {1-0 Durarbayli,V (2615)-Kanarek,M (2484) Wch Blitz Warsaw 2021 (2)}) 10. g4 {[%emt 0:13:27]} Nh4 {[%emt 0:08:15]} 11. Nxh4 {[%emt 0:11:11]} Qxh4 {[%emt 0:00:09]} 12. Bg2 {[%emt 0:04:14]} Bb7 {[%emt 0:03:24]} 13. Qf3 {[%emt 0:09:06]} Rb8 {[%emt 0:06:20]} 14. O-O-O {[%emt 0:06:07]} Be7 {[%emt 0:06:38]} 15. Qe3 {[%emt 0:04:43]} O-O {[%emt 0:08:32]} 16. f4 {[%emt 0:01:44]} Nd4 {[%emt 0:17:37]} 17. Rdf1 {[%emt 0:08:12]} b5 {[%emt 0:05:22]} 18. cxb5 {[%emt 0:04:03]} Nxb5 {[%emt 0:07:59]} 19. f5 {[%emt 0:03:28]} Bxe4 {[%emt 0:04:48]} 20. Bxe4 {[%emt 0:17:03]} Bg5 {[%emt 0:00:41]} 21. Qf2 {[%emt 0:00:00]} a5 {[%emt 0:02:35]} 22. Bd3 {[%emt 0:00:00]} (22. Qxc5 $2 Rfc8 $19) 22... Nd4 {[%emt 0:04:38]} 23. Bxd4 {[%emt 0:00:00]} (23. Qxh4 {simplifies} Bxh4 24. Bxd4 cxd4 25. Rf4) 23... cxd4 {[%emt 0:00:07]} 24. Qxd4 {[%emt 0:00:00]} Rfc8+ {[%emt 0:01:01]} 25. Bc4 {[%emt 0:00:00]} a4 {[%emt 0:00:55]} (25... Qg3 $5 26. Kd1 Qg2 $11) 26. Rf3 {[%emt 0:00:00]} axb3 {[%emt 0:03:03]} 27. axb3 {[%emt 0:00:00]} Ra8 {[%emt 0:00:39]} (27... Kh8 {simplifies} 28. Rhf1 f6 29. exf6 gxf6 30. fxe6 dxe6 31. Qe4 Re8) 28. Kb2 {[%emt 0:00:00]} d5 {[%emt 0:01:05]} 29. Bb5 $1 {[%emt 0:00:00]} Qh6 {[%emt 0:02:13]} 30. Rd3 {[%emt 0:00:22]} (30. Rd1 $11) 30... Rab8 $1 $17 {[%emt 0:00:57]} 31. Ba4 {[%emt 0:00:41] [#]} Rc4 {[%emt 0:01:30]} (31... Bxd2 $1 $17 {White must now prevent ...Rb4.} 32. Rf1 (32. Rxd2 Rc4 $19) 32... Bg5) 32. Qa7 $11 {[%emt 0:00:06]} Rcc8 {[%emt 0:00:07]} 33. Bd7 {[%emt 0:01:48]} Rd8 {[%emt 0:00:44]} (33... Ra8 34. Qb7 Rab8 35. Qa6 $16) 34. fxe6 {[%emt 0:01:41]} fxe6 {[%emt 0:00:08]} 35. Qc7 {[%emt 0:00:42]} Qg6 {[%emt 0:03:39]} (35... Bxd2 36. Qc6 Kh8 37. Qxe6 $11) 36. Rf3 {[%emt 0:00:56]} (36. Rd4 $142 Qf7 37. h4 Bxd2 (37... Rxd7 $2 38. Qxb8+ Bd8 39. Rc1 $18) 38. Rxd2) 36... Kh8 {[%emt 0:02:42]} (36... Bxd2 $17 {And now ...Qe4 would win.} 37. Rhf1 Bb4) 37. Rhf1 {[%emt 0:00:15]} (37. d3 $11) 37... h6 {[%emt 0:00:18]} 38. d3 {[%emt 0:00:23] [#]} Be7 $1 {[%emt 0:00:32]} 39. Ba4 {[%emt 0:00:45]} ({Better is} 39. Kc2 $1 $15) 39... Qg5 $19 {[%emt 0:00:31]} 40. Rf7 {[%emt 0:00:49]} (40. Kb1 $142) 40... Rdc8 $2 {[%emt 0:04:04]} (40... Qd2+ $19 41. Kb1 Qxd3+ 42. Qc2 Qxh3) 41. Qxe7 $11 {[%emt 0:02:02]} Qd2+ {[%emt 0:00:11]} 42. Ka3 {[%emt 0:00:00]} Rxb3+ {[%emt 0:00:48]} (42... Rc2 $5 43. Ra1 $8 (43. Qxe6 $2 Qb4#) (43. Rf8+ $2 Kh7 $19) 43... Rxb3+ 44. Bxb3 Qa5+ 45. Ba4 Qc3+ 46. Bb3 Qxa1+ 47. Kb4 Qc3+ 48. Ka4 Qc6+ 49. Ka3 Qa6+ 50. Ba4 (50. Kb4 Qb6+ 51. Ka3 Qa5+ 52. Ba4 Qc3+ 53. Bb3 Qa1+ 54. Kb4 Qc3+ 55. Ka3 Qa1+ $11) 50... Qxd3+ 51. Bb3 Qa6+ 52. Ba4 (52. Kb4 Qb6+ 53. Ka4 Qc6+ 54. Ka3 Qa6+ 55. Kb4 Qb6+ 56. Ka4 Qc6+ 57. Kb4 Qb6+ $11) 52... Qd3+ 53. Bb3 Qa6+ 54. Kb4 Qb6+ 55. Ka4 Qa6+ 56. Kb4 Qb6+ 57. Ka3 (57. Ka4 Qa6+ 58. Kb4 $11) 57... Qa5+ 58. Ba4 Qc3+ 59. Bb3 Qa5+ (59... Qxh3 60. Qf8+ Kh7 61. Rxg7#) 60. Ba4 Qc3+ 61. Bb3 Qa5+ $11 (61... Qxh3 62. Qf8+ Kh7 63. Rxg7#)) 43. Bxb3 {[%emt 0:00:11]} Qa5+ $1 {[%emt 0:00:36]} 44. Ba4 {[%emt 0:00:41]} Qc3+ {[%emt 0:00:23]} 45. Ka2 {[%emt 0:00:14]} Qd2+ {[%emt 0:00:26]} 46. Ka1 {[%emt 0:00:12]} Qc3+ {[%emt 0:00:18]} 47. Ka2 {[%emt 0:00:11]} Qd2+ {[%emt 0:00:17]} 48. Ka1 {[%emt 0:00:51]} Qc3+ {[%emt 0:00:27]} 49. Ka2 {[%emt 0:00:12]} Qd2+ {[%emt 0:00:16]} 50. Ka1 {[%emt 0:00:56]} Qc3+ {[%emt 0:00:22]} 51. Ka2 {[%emt 0:00:32]} Qd2+ {[%emt 0:00:15]} 1/2-1/2

[Event "1000 GM Labor Day Super Swiss 2024"]
[Site "San Jose"]
[Date "2024.09.04"]
[Round "9.11"]
[White "Garduno Huerta, Joshua Emiliano"]
[Black "Alfaro, William"]
[Result "0-1"]
[Annotator "NA RC"]
[ECO "A58"]
[WhiteElo "2056"]
[BlackElo "2137"]
[PlyCount "114"]
[EventDate "2024.08.30"]
[EventType "swiss"]
[EventCountry "USA"]
[SourceTitle "playchess.com"]
[Source "ChessBase"]
[SourceQuality "1"]
[TimeControl "5400+30"]

1. d4 {[%emt 0:13:29]} Nf6 {[%emt 0:09:19]} 2. c4 {[%emt 0:00:07]} c5 {[%emt 1:22:11]} 3. d5 {[%emt 0:00:10]} b5 {[%emt 0:00:00]} 4. cxb5 {[%emt 0:00:01]} a6 {[%emt 0:00:00]} 5. bxa6 {[%emt 0:00:05]} g6 {[%emt 0:00:00]} 6. Nc3 {[%emt 0:00:06]} Bg7 {[%emt 0:00:00]} 7. Nf3 {[%emt 0:00:05]} O-O {[%emt 0:00:00]} 8. g3 {[%emt 0:00:18]} d6 {[%emt 0:00:00]} 9. Bg2 {[%emt 0:00:05]} Nbd7 {[%emt 0:00:00] A58: Benko/Volga Gambit: Lines with 5 bxa6.} 10. Rb1 {[%emt 0:00:12]} Nb6 {[%emt 0:00:00]} 11. b3 {[%emt 0:00:13]} Bf5 {[%emt 0:00:00]} 12. Bb2 {[%emt 0:02:50]} Bxb1 {[%emt 0:00:00]} 13. Qxb1 {[%emt 0:00:16]} Nfxd5 {[%emt 0:00:00]} ({Much less strong is} 13... Rxa6 14. e4 $17) 14. Nxd5 {[%emt 0:00:28]} Nxd5 {[%emt 0:00:00]} 15. Bxg7 {[%emt 0:00:59]} Kxg7 {[%emt 0:00:00]} 16. Nd2 {[%emt 0:00:07] [#]} e6 $1 {[%emt 0:00:00]} ({Wrong is} 16... Nc3 $2 17. Qa1 $18) 17. Qd3 {[%emt 0:01:12]} Qa5 {[%emt 0:00:00]} 18. Bxd5 {[%emt 0:00:42]} exd5 {[%emt 0:00:00]} 19. O-O {[%emt 0:00:08]} d4 {[%emt 0:00:00]} ({Much less strong is} 19... Qxa2 20. Qxd5 Rxa6 (20... Qxa6 21. Nc4 $17) 21. Qd3 $17) 20. a4 {[%emt 0:01:14]} Qxa6 {[%emt 0:00:00]} ({Don't play} 20... Rxa6 21. e3 $19) 21. Qf3 {[%emt 0:00:53]} Rfe8 {[%emt 0:00:00]} 22. Nc4 {[%emt 0:03:24]} Rad8 {[%emt 0:00:00]} 23. Re1 {[%emt 0:13:35]} d5 {[%emt 0:00:00]} 24. Nb2 {[%emt 0:00:14]} c4 {[%emt 0:00:00]} 25. Rd1 {[%emt 0:03:25] [#]} d3 $1 {[%emt 0:00:00]} 26. bxc4 {[%emt 0:59:12]} dxc4 {[%emt 0:00:00]} 27. exd3 {[%emt 0:00:00]} c3 {[%emt 0:00:00]} 28. Nc4 {[%emt 0:00:00]} Qxa4 {[%emt 0:00:00]} 29. Rc1 {[%emt 0:00:00]} Qb3 {[%emt 0:00:00]} 30. Qd1 {[%emt 0:00:00] [#]} c2 {[%emt 0:00:00]} 31. Qxc2 {[%emt 0:00:00] [#]} Re1+ $3 {[%emt 0:00:00]} 32. Kg2 {[%emt 0:00:00]} Qb7+ {[%emt 0:00:00]} 33. Kh3 {[%emt 0:00:00]} Qd7+ {[%emt 0:00:00]} 34. Kg2 {[%emt 0:00:00]} Qd5+ {[%emt 0:00:00]} (34... Qxd3 $2 {perishes. too greedy.} 35. Qxd3 Rxd3 36. Rxe1 $18) 35. Kh3 {[%emt 0:00:00]} Qf5+ {[%emt 0:00:00]} (35... Qxd3 $2 {perishes.} 36. Qxd3 Rxd3 37. Rxe1 $18) 36. Kg2 {[%emt 0:00:00]} Rxc1 {[%emt 0:00:00]} 37. Qxc1 {[%emt 0:00:00]} Rxd3 {[%emt 0:00:00]} 38. Ne3 {[%emt 0:00:00]} Qe4+ {[%emt 0:00:00]} 39. Kg1 $19 {[%emt 0:00:00]} (39. Kh3 {was the only defense.}) 39... Qd4 {[%emt 0:00:00]} 40. Kg2 {[%emt 0:00:00]} Rd2 {[%emt 0:00:00]} 41. Kg1 {[%emt 0:00:00]} h5 {[%emt 0:00:00]} 42. h4 {[%emt 0:00:00]} Ra2 {[%emt 0:00:00]} 43. Qc6 {[%emt 0:00:00]} Qf6 {[%emt 0:00:00]} 44. Qg2 {[%emt 0:00:00]} Qa1+ {[%emt 0:00:00]} 45. Nf1 {[%emt 0:00:00]} Qe1 {[%emt 0:00:53]} 46. Qf3 {[%emt 0:00:00]} Rc2 {[%emt 0:04:07]} 47. Qf4 {[%emt 0:00:00]} Rc1 {[%emt 0:03:36]} 48. Qd4+ {[%emt 0:00:00]} Kh7 {[%emt 0:00:05]} 49. Qd3 {[%emt 0:00:00]} Rd1 {[%emt 0:00:09]} 50. Qc4 {[%emt 0:00:00]} Kg7 {[%emt 0:00:11]} 51. Kg2 {[%emt 0:00:00]} Kg8 {[%emt 0:00:13]} 52. Qc8+ {[%emt 0:00:00]} Kg7 {[%emt 0:00:01]} 53. Qc4 {[%emt 0:00:00]} Kg8 {[%emt 0:00:14]} 54. Qc8+ {[%emt 0:00:00]} Kh7 {[%emt 0:00:01]} 55. Qc4 {[%emt 0:00:00]} Kg7 {[%emt 0:00:01]} 56. Kg1 {[%emt 0:00:00]} Qe5 {[%emt 0:01:21]} 57. Kh2 {[%emt 0:00:00]} Rd4 {[%emt 0:01:17]} 0-1